Category,Service area,Service sub division,TVBC Service,Expense type,Detailed expense type,TVBC account code,Date Paid,Transaction Reference,Nett Value,Supplier Name
CO,Central Services to the Public,Management & Support Services,IT,Supplies & Services,Services,Project Consultancy - Systems,22/01/2015,145118,-6800,Deltascheme
CO,Central Services to the Public,Management & Support Services,Estates and Economic Development ,Supplies & Services,"Equipment, Furniture & Materials",Purchase Tools,29/01/2015,143429,-2276,Cjs Portsmouth Ltd
CO,Environmental & Regulatory,Street Cleansing (not chargeable to Highways),Environmental,Transport Related Expenditure,Direct Transport Costs,External Garages,08/01/2015,139778,-600,Ctrack Uk Limited
CO,Cultural & Related,Culture & Heritage,Community and Leisure ,Supplies & Services,Catering,Non-Contract Catering,15/01/2015,143420,-594.37,Carlsberg Uk Ltd
CO,Housing Services,Homelessness,Housing and Environmental Health ,Transport Related Expenditure,Contract Hire and Operating Leases,Officer lease cars,29/01/2015,137093,-647.07,Volkswagen Group Leasing
CO,"Highways, Roads & Transport",Highways and roads - maintenance,Plan Pol & Transport,Supplies & Services,Grants & Subscriptions,Subscriptions,08/01/2015,127301,-478.6,Bm Trada
CH,Planning & Development,Community Development,Community and Leisure ,Supplies & Services,Grants & Subscriptions,Grants,14/01/2015,144337,500,Andover Youth Council
CH,Planning & Development,Community Development,Community and Leisure ,Supplies & Services,Grants & Subscriptions,Grants,22/01/2015,145139,500,Picket Twenty Community Association
CH,Planning & Development,Community Development,Community and Leisure ,Supplies & Services,Grants & Subscriptions,Grants,28/01/2015,142799,500,Action For Children
CH,Planning & Development,Community Development,Community and Leisure ,Supplies & Services,Grants & Subscriptions,Grants,28/01/2015,144338,500,Action For Children
CH,Planning & Development,Community Development,Community and Leisure ,Supplies & Services,Grants & Subscriptions,Grants,28/01/2015,145625,500,Friends Of Romsey Signal Box
CO,Environmental & Regulatory,Waste management,Environmental,Supplies & Services,Miscellaneous Expenses,Vehicle insurance claims,08/01/2015,143599,500,B P Rolls Ltd
CO,Planning & Development,Economic Development,Estates and Economic Development ,Supplies & Services,Grants & Subscriptions,Grants,28/01/2015,145624,500,Clementine Marketing & Design
PS,Planning & Development,Community Development,Community and Leisure ,Supplies & Services,Grants & Subscriptions,Grants,21/01/2015,144970,500,Abbotts Ann Green Action (Aaga)
PS,Planning & Development,Community Development,Community and Leisure ,Supplies & Services,Grants & Subscriptions,Grants,22/01/2015,145136,500,Wherwell Parish Council
PS,Environmental & Regulatory,Community Development,Community and Leisure ,Supplies & Services,Miscellaneous Expenses,Promotions / Special Events,28/01/2015,145383,500,Stoic
ST,Planning & Development,Economic Development,Estates and Economic Development ,Supplies & Services,Grants & Subscriptions,Grants,15/01/2015,144491,500,Personal data - Data Protection Act 1998
CO,Environmental & Regulatory,Waste management,Environmental,Employees,Indirect Employee Expenses,Agency Staff - Waged Posts,22/01/2015,144716,417.33,365 Supply Ltd
EM,Central Services to the Public,Management & Support Services,Estates and Economic Development ,Employees,Indirect Employee Expenses,Staff Professional Fees,08/01/2015,143895,506,Personal data - Data Protection Act 1998
CO,Cultural & Related,Open Spaces,Community and Leisure ,Premises related Expenditure,Water Services,Water And Sewerage Charges,15/01/2015,144469,512.1,Southern Water
CO,Cultural & Related,Open Spaces,Environmental,Supplies & Services,Miscellaneous Expenses,Waste Collection,29/01/2015,144451,433.87,Raymond Brown Minerals & Recycling Ltd
CO,Central Services to the Public,Management & Support Services,Estates and Economic Development ,Supplies & Services,"Equipment, Furniture & Materials",Purchase Materials (Job Cost),14/01/2015,3177,434.92,Steintec
PS,Planning & Development,Community Development,Community and Leisure ,Supplies & Services,Grants & Subscriptions,Grants,14/01/2015,144335,525,North Baddesley Village Hall
CO,Central Services to the Public,Elections,Legal & Democratic,Supplies & Services,"Printing, Stationery & General Office Expenses",Postage Costs,29/01/2015,145634,439.35,Financial Data Management Plc
CO,Central Services to the Public,Management & Support Services,Estates and Economic Development ,Third Party Payments,Other Establishments,Private Contractors,29/01/2015,145601,442.5,Clearwater 2010 Ltd
CO,Cultural & Related,Open Spaces,Environmental,Supplies & Services,"Equipment, Furniture & Materials",Purchase Equip + Materials,08/01/2015,143611,444.11,Spaldings (Uk) Limited
CO,Central Services to the Public,Management & Support Services,Plan Pol & Transport,Premises related Expenditure,Repairs Alterations & Maintenance of Buildings,General Repairs,22/01/2015,144976,445,Rocon Contractors Ltd
CH,Environmental & Regulatory,Community Development,Community and Leisure ,Supplies & Services,Services,Coaches Fees,22/01/2015,144704,450,Nfs Mediation Ltd
CO,Cultural & Related,Open Spaces,Community and Leisure ,Premises related Expenditure,Grounds Maintenance Costs,Gm - Additional Works,08/01/2015,143195,450,Mainwaring Ditch Associates
CO,Central Services to the Public,Management & Support Services,Plan Pol & Transport,Supplies & Services,"Equipment, Furniture & Materials",Purchase Equip + Materials,29/01/2015,144978,450,Purbeck Civil Engineering Limited
CO,"Highways, Roads & Transport",Parking Services,Plan Pol & Transport,Premises related Expenditure,Repairs Alterations & Maintenance of Buildings,Car Park General Repairs,22/01/2015,144780,450,M J Ellis Manufacturing
CO,Cultural & Related,Open Spaces,Environmental,Supplies & Services,"Printing, Stationery & General Office Expenses",Training Courses,15/01/2015,144119,450,Allied Driving Schools Ltd
CO,Central Services to the Public,Management & Support Services,Environmental,Supplies & Services,"Clothes, Uniforms & Laundry",Clothing + Uniforms,29/01/2015,145777,451.51,Arco Ltd
CO,Environmental & Regulatory,Regulatory Services,Housing and Environmental Health ,Supplies & Services,Grants and subscriptions,Capital Grants,29/01/2015,145790,546.74,Bentley Mobility Services
PA,Environmental & Regulatory,Street Cleansing (not chargeable to Highways),Environmental,Supplies & Services,"Equipment, Furniture & Materials",Purchase Equip + Materials,08/01/2015,143603,116,Roland Security Llp
PA,Environmental & Regulatory,Waste management,Environmental,Supplies & Services,"Equipment, Furniture & Materials",Purchase Equip + Materials,08/01/2015,143603,348,Roland Security Llp
CO,Cultural & Related,Culture & Heritage,Estates and Economic Development ,Premises related Expenditure,Energy Costs,Gas,29/01/2015,144736,474.94,Total Gas & Power Ltd
CO,Central Services to the Public,Local Tax Collection,Revenues,Supplies & Services,Services,Professional Fees,15/01/2015,144227,75,Ross & Roberts
CO,Cultural & Related,Tourism,Estates and Economic Development ,Premises related Expenditure,Water Services,Water And Sewerage Charges,15/01/2015,144474,579.16,Southern Water
CO,Central Services to the Public,Management & Support Services,Estates and Economic Development ,Premises related Expenditure,Repairs Alterations & Maintenance of Buildings,Planned Maintenance - Non Est,29/01/2015,145569,485,Alarms & Electrical (Devizes) Ltd
CO,"Highways, Roads & Transport",Highways and roads - maintenance,Plan Pol & Transport,Supplies & Services,"Equipment, Furniture & Materials",Purchase Equip + Materials,08/01/2015,143416,487,Ca Traffic Ltd
CO,Cultural & Related,Open Spaces,Environmental,Employees,Indirect Employee Expenses,Agency Staff - Waged Posts,08/01/2015,143752,487.83,Simple Recruitment Services Ltd
CO,Planning & Development,Economic Development,Estates and Economic Development ,Supplies & Services,Grants & Subscriptions,Subscriptions,22/01/2015,144975,495,Atcm
PS,Central Services to the Public,Local Tax Collection,Revenues,Supplies & Services,Miscellaneous Expenses,Data Access Requests,29/01/2015,145380,19.8,Brighton & Hove City Council
PS,Central Services to the Public,Local Tax Collection,Revenues,Supplies & Services,Miscellaneous Expenses,Data Access Requests,29/01/2015,145380,403,Brighton & Hove City Council
PS,Housing Services,Housing Benefits ,Revenues,Supplies & Services,Miscellaneous Expenses,Data Access Requests,29/01/2015,145380,21.93,Brighton & Hove City Council
PS,Central Services to the Public,Local Tax Collection,Revenues,Supplies & Services,Miscellaneous Expenses,Data Access Requests,29/01/2015,145380,21.92,Brighton & Hove City Council
PS,Environmental & Regulatory,Street Cleansing (not chargeable to Highways),Environmental,Supplies & Services,Services,Legal Fees,29/01/2015,145380,29,Brighton & Hove City Council
CO,Central Services to the Public,Management & Support Services,Legal & Democratic,Supplies & Services,Communications & Computing,Computer Hardware,22/01/2015,144462,497.08,E-Buyer (Uk) Limited
CO,Central Services to the Public,Management & Support Services,Chief Executive's,Employees,Indirect Employee Expenses,Temporary Staff,08/01/2015,143176,497.25,Personnel Selection
CO,Central Services to the Public,Management & Support Services,Chief Executive's,Employees,Indirect Employee Expenses,Temporary Staff,08/01/2015,143581,497.25,Personnel Selection
CO,Central Services to the Public,Management & Support Services,Environmental,Transport Related Expenditure,Direct Transport Costs,Repair Materials,08/01/2015,143681,499.46,Dennis Eagle Ltd
CO,External Trading Accounts,Industrial Estates,Estates and Economic Development ,Supplies & Services,Miscellaneous Expenses,Waste Collection,15/01/2015,144475,499.8,Basingstoke Skip Hire & Sthrn Waste Mgt Ltd
CO,Cultural & Related,Recreation & Sport,Community and Leisure ,Supplies & Services,Miscellaneous Expenses,Advertising,08/01/2015,141188,500,The Leisure Media Company Ltd
CO,Central Services to the Public,Local Tax Collection,Revenues,Supplies & Services,Communications & Computing,Software Maintenance,15/01/2015,143569,200.34,Northgate Information Solutions Uk Ltd
CO,Central Services to the Public,Local Tax Collection,Revenues,Supplies & Services,Communications & Computing,Software Maintenance,15/01/2015,143569,50.08,Northgate Information Solutions Uk Ltd
CO,Housing Services,Housing Benefits ,Revenues,Supplies & Services,Communications & Computing,Software Maintenance,15/01/2015,143569,125.21,Northgate Information Solutions Uk Ltd
CO,Central Services to the Public,Local Tax Collection,Revenues,Supplies & Services,Communications & Computing,Software Maintenance,15/01/2015,143569,125.21,Northgate Information Solutions Uk Ltd
CO,External Trading Accounts,Industrial Estates,Estates and Economic Development ,Supplies & Services,Communications & Computing,Land Line Telephone Charges,08/01/2015,143309,28.02,Virgin Media Payments Ltd
CO,Cultural & Related,Culture & Heritage,Estates and Economic Development ,Supplies & Services,Communications & Computing,Land Line Telephone Charges,08/01/2015,143309,39.45,Virgin Media Payments Ltd
CO,Cultural & Related,Culture & Heritage,Estates and Economic Development ,Supplies & Services,Communications & Computing,Land Line Telephone Charges,08/01/2015,143309,39.07,Virgin Media Payments Ltd
CO,Central Services to the Public,Management & Support Services,IT,Supplies & Services,Communications & Computing,Communication Links,08/01/2015,143309,26,Virgin Media Payments Ltd
CO,Central Services to the Public,Management & Support Services,IT,Supplies & Services,Communications & Computing,Communication Links,08/01/2015,143309,67,Virgin Media Payments Ltd
CO,Cultural & Related,Recreation & Sport,Community and Leisure ,Supplies & Services,Communications & Computing,Land Line Telephone Charges,08/01/2015,143309,26,Virgin Media Payments Ltd
CO,Cultural & Related,Recreation & Sport,Community and Leisure ,Supplies & Services,Communications & Computing,Land Line Telephone Charges,08/01/2015,143309,16.64,Virgin Media Payments Ltd
CO,Cultural & Related,Recreation & Sport,Community and Leisure ,Supplies & Services,Communications & Computing,Land Line Telephone Charges,08/01/2015,143309,13,Virgin Media Payments Ltd
CO,Cultural & Related,Culture & Heritage,Community and Leisure ,Supplies & Services,Communications & Computing,Communication Links,08/01/2015,143309,52,Virgin Media Payments Ltd
CO,"Highways, Roads & Transport",Parking Services,Plan Pol & Transport,Supplies & Services,Communications & Computing,Alarm Lines,08/01/2015,143309,37.02,Virgin Media Payments Ltd
CO,Central Services to the Public,Management & Support Services,Environmental,Supplies & Services,Communications & Computing,Land Line Telephone Charges,08/01/2015,143309,71.21,Virgin Media Payments Ltd
CO,Central Services to the Public,Emergency Planning,Corporate & Democratic,Supplies & Services,Communications & Computing,Land Line Telephone Charges,08/01/2015,143309,91.57,Virgin Media Payments Ltd
CO,Environmental & Regulatory,Waste management,Environmental,Employees,Indirect Employee Expenses,Agency Staff - Waged Posts,22/01/2015,144958,508.38,Abacus Employment Services Ltd
CO,Central Services to the Public,Management & Support Services,Environmental,Supplies & Services,"Equipment, Furniture & Materials",Maintenance Equip + Materials,15/01/2015,143770,515.23,Somers Totalkare Ltd
CO,Cultural & Related,Open Spaces,Environmental,Transport Related Expenditure,Direct Transport Costs,Repair Materials,22/01/2015,144195,521.65,T H White Ltd
CO,Environmental & Regulatory,Regulatory Services,Estates and Economic Development ,Premises related Expenditure,Water Services,Water And Sewerage Charges,29/01/2015,145579,626.88,Southern Water
CO,Central Services to the Public,Management & Support Services,Estates and Economic Development ,Supplies & Services,Services,Removal Fees,08/01/2015,143868,530,Pickfords Move Management Ltd
CO,Central Services to the Public,Local Tax Collection,Revenues,Supplies & Services,"Printing, Stationery & General Office Expenses",Postage Costs,08/01/2015,143849,29.68,Royal Mail
CO,Central Services to the Public,Local Tax Collection,Revenues,Supplies & Services,"Printing, Stationery & General Office Expenses",Postage Costs,08/01/2015,143849,168.99,Royal Mail
CO,Housing Services,Housing Benefits ,Revenues,Supplies & Services,"Printing, Stationery & General Office Expenses",Postage Costs,08/01/2015,143849,166.28,Royal Mail
CO,Central Services to the Public,Local Tax Collection,Revenues,Supplies & Services,"Printing, Stationery & General Office Expenses",Postage Costs,08/01/2015,143849,166.28,Royal Mail
CO,Central Services to the Public,Management & Support Services,Estates and Economic Development ,Supplies & Services,"Equipment, Furniture & Materials",Purchase Equip + Materials,15/01/2015,143656,117.5,Supplies Team Ltd
CO,Central Services to the Public,Management & Support Services,Estates and Economic Development ,Supplies & Services,"Printing, Stationery & General Office Expenses",Stationery,15/01/2015,143656,119.42,Supplies Team Ltd
CO,Cultural & Related,Culture & Heritage,Estates and Economic Development ,Supplies & Services,"Equipment, Furniture & Materials",Purchase Equip + Materials,15/01/2015,143656,250.63,Supplies Team Ltd
CO,Cultural & Related,Culture & Heritage,Estates and Economic Development ,Supplies & Services,"Printing, Stationery & General Office Expenses",Stationery,15/01/2015,143656,49.24,Supplies Team Ltd
ST,Cultural & Related,Culture & Heritage,Community and Leisure ,Supplies & Services,Miscellaneous Expenses,Booking Of Acts,15/01/2015,143772,650,Midnight Mango Ltd
ST,Cultural & Related,Culture & Heritage,Community and Leisure ,Supplies & Services,Miscellaneous Expenses,Booking Of Acts,22/01/2015,144954,650,Moscow Drug Club
ST,Cultural & Related,Culture & Heritage,Community and Leisure ,Supplies & Services,Miscellaneous Expenses,Booking Of Acts,29/01/2015,145406,650,Midnight Mango Ltd
CO,Central Services to the Public,Management & Support Services,Community and Leisure ,Supplies & Services,"Printing, Stationery & General Office Expenses",Photocopying Costs,08/01/2015,143434,541.72,Ricoh Uk Ltd
CO,Central Services to the Public,Elections,Legal & Democratic,Supplies & Services,"Printing, Stationery & General Office Expenses",Training Courses,08/01/2015,143643,550,Xpress Software Solutions Ltd
CO,Cultural & Related,Culture & Heritage,Community and Leisure ,Supplies & Services,Miscellaneous Expenses,Booking Of Acts,22/01/2015,144972,550,The Pied Piper Theatre Company
CO,Central Services to the Public,Management & Support Services,Estates and Economic Development ,Supplies & Services,"Equipment, Furniture & Materials",Purchase Materials (Job Cost),06/01/2015,3138,551.22,Wolseley Uk Limited
CO,Central Services to the Public,Management & Support Services,Estates and Economic Development ,Third Party Payments,Other Establishments,Private Contractors,15/01/2015,144139,672,Ashine Cleaning Services Ltd
CO,Central Services to the Public,Management & Support Services,Estates and Economic Development ,Supplies & Services,"Equipment, Furniture & Materials",Purchase Tools,08/01/2015,143869,564.08,Wessex Fixings
CO,Central Services to the Public,Local Tax Collection,Revenues,Supplies & Services,"Equipment, Furniture & Materials",Equipment Lease Rentals,08/01/2015,143437,56.42,Ricoh Uk Ltd
CO,Central Services to the Public,Local Tax Collection,Revenues,Supplies & Services,"Equipment, Furniture & Materials",Equipment Lease Rentals,08/01/2015,143437,225.69,Ricoh Uk Ltd
CO,Housing Services,Housing Benefits ,Revenues,Supplies & Services,"Equipment, Furniture & Materials",Equipment Lease Rentals,08/01/2015,143437,141.05,Ricoh Uk Ltd
CO,Central Services to the Public,Local Tax Collection,Revenues,Supplies & Services,"Equipment, Furniture & Materials",Equipment Lease Rentals,08/01/2015,143437,141.05,Ricoh Uk Ltd
CO,Central Services to the Public,Management & Support Services,Estates and Economic Development ,Transport Related Expenditure,Direct Transport Costs,Repair Materials,29/01/2015,145414,10.7,M D Services
CO,Environmental & Regulatory,Regulatory Services,Estates and Economic Development ,Transport Related Expenditure,Direct Transport Costs,Repair Materials,29/01/2015,145414,4.28,M D Services
CO,Environmental & Regulatory,Regulatory Services,Housing and Environmental Health ,Transport Related Expenditure,Direct Transport Costs,Repair Materials,29/01/2015,145414,4.28,M D Services
CO,Environmental & Regulatory,Regulatory Services,Housing and Environmental Health ,Transport Related Expenditure,Direct Transport Costs,Repair Materials,29/01/2015,145414,4.28,M D Services
CO,Environmental & Regulatory,Community Development,Community and Leisure ,Transport Related Expenditure,Direct Transport Costs,Repair Materials,29/01/2015,145414,4.28,M D Services
CO,"Highways, Roads & Transport",Parking Services,Plan Pol & Transport,Transport Related Expenditure,Direct Transport Costs,Repair Materials,29/01/2015,145414,4.28,M D Services
CO,Cultural & Related,Open Spaces,Environmental,Transport Related Expenditure,Direct Transport Costs,Repair Materials,29/01/2015,145414,158.36,M D Services
CO,Environmental & Regulatory,Street Cleansing (not chargeable to Highways),Environmental,Transport Related Expenditure,Direct Transport Costs,Repair Materials,29/01/2015,145414,124.12,M D Services
CO,Environmental & Regulatory,Waste management,Environmental,Transport Related Expenditure,Direct Transport Costs,Repair Materials,29/01/2015,145414,100.58,M D Services
CO,Environmental & Regulatory,Waste management,Environmental,Transport Related Expenditure,Direct Transport Costs,Repair Materials,29/01/2015,145414,6.42,M D Services
CO,Central Services to the Public,Management & Support Services,Environmental,Transport Related Expenditure,Direct Transport Costs,Workshop Consumables,29/01/2015,145414,110.87,M D Services
CO,Central Services to the Public,Management & Support Services,Environmental,Transport Related Expenditure,Direct Transport Costs,Repair Materials,29/01/2015,145414,29.2,M D Services
CO,Central Services to the Public,Management & Support Services,Environmental,Transport Related Expenditure,Direct Transport Costs,Repair Materials,29/01/2015,145414,6.42,M D Services
CO,Central Services to the Public,Management & Support Services,Estates and Economic Development ,Third Party Payments,Other Establishments,Private Contractors,29/01/2015,145561,569.73,Nuserve Ltd
CO,Central Services to the Public,Management & Support Services,Estates and Economic Development ,Supplies & Services,"Equipment, Furniture & Materials",Purchase Materials (Job Cost),29/01/2015,140717,570,Edmundson Electrical Ltd
CO,Cultural & Related,Culture & Heritage,Community and Leisure ,Supplies & Services,"Printing, Stationery & General Office Expenses",Postage Costs,08/01/2015,143191,571.55,Royal Mail
CO,Cultural & Related,Culture & Heritage,Community and Leisure ,Supplies & Services,"Printing, Stationery & General Office Expenses",Photocopying Costs,22/01/2015,144755,572.27,Ricoh Uk Ltd
CO,Planning & Development,Development Control,Planning & Building,Employees,Indirect Employee Expenses,Temporary Staff,22/01/2015,144169,577.5,Hays Specialist Recruitment
CO,Environmental & Regulatory,Waste management,Environmental,Transport Related Expenditure,Direct Transport Costs,Repair Materials,08/01/2015,143591,580.62,Dennis Eagle Ltd
CO,Cultural & Related,Culture & Heritage,Community and Leisure ,Supplies & Services,Catering,Non-Contract Catering,08/01/2015,143612,563.22,3663
CO,Cultural & Related,Culture & Heritage,Community and Leisure ,Supplies & Services,Catering,Caf� Catering supplies,08/01/2015,143612,24.4,3663
CO,Planning & Development,Economic Development,Estates and Economic Development ,Supplies & Services,"Printing, Stationery & General Office Expenses",Training Courses,08/01/2015,143837,595,Chimflue Ltd
CO,Environmental & Regulatory,Street Cleansing (not chargeable to Highways),Environmental,Supplies & Services,"Equipment, Furniture & Materials",Purchase Equip + Materials,08/01/2015,143417,595.5,Melba Products Ltd
CO,Environmental & Regulatory,Regulatory Services,Housing and Environmental Health ,Supplies & Services,Services,Project Consultancy - Policy,08/01/2015,143766,601.77,Eurofins Environmental Testing Uk Ltd
CO,Central Services to the Public,Management & Support Services,IT,Supplies & Services,Communications & Computing,Land Line Telephone Charges,15/01/2015,144103,602.65,Virgin Media Payments Ltd
CO,Central Services to the Public,Management & Support Services,Environmental,Transport Related Expenditure,Direct Transport Costs,Workshop Consumables,22/01/2015,144665,336.59,M D Services
CO,Central Services to the Public,Management & Support Services,Environmental,Transport Related Expenditure,Direct Transport Costs,Repair Materials,22/01/2015,144665,266.8,M D Services
PS,Planning & Development,Community Development,Community and Leisure ,Supplies & Services,Grants & Subscriptions,Grants,21/01/2015,144969,725,Andover Parish Neighbourhood Plan
CO,Planning & Development,Economic Development,Estates and Economic Development ,Supplies & Services,"Printing, Stationery & General Office Expenses",Training Courses,08/01/2015,143594,729,Alternative Physiotherapy
CO,Central Services to the Public,Management & Support Services,Legal & Democratic,Supplies & Services,"Printing, Stationery & General Office Expenses",Written Media,08/01/2015,143747,722,Hammicks Legal Information Services
CO,Environmental & Regulatory,Waste management,Environmental,Transport Related Expenditure,Direct Transport Costs,Repair Materials,15/01/2015,144122,175.77,Terberg Matec Uk Limited
CO,Central Services to the Public,Management & Support Services,Environmental,Transport Related Expenditure,Direct Transport Costs,Repair Materials,15/01/2015,144122,434.59,Terberg Matec Uk Limited
CO,Environmental & Regulatory,Street Cleansing (not chargeable to Highways),Environmental,Supplies & Services,Miscellaneous Expenses,Vehicle insurance claims,22/01/2015,144719,629,Johnston Sweepers Ltd
CO,Environmental & Regulatory,Street Cleansing (not chargeable to Highways),Environmental,Transport Related Expenditure,Direct Transport Costs,Repair Materials,29/01/2015,145415,629,Johnston Sweepers Ltd
CO,Environmental & Regulatory,Street Cleansing (not chargeable to Highways),Environmental,Supplies & Services,"Equipment, Furniture & Materials",Purchase Equip + Materials,08/01/2015,143624,638.69,Glasdon Uk Ltd
CO,Central Services to the Public,Management & Support Services,Legal & Democratic,Supplies & Services,"Printing, Stationery & General Office Expenses",Photocopying Costs,22/01/2015,144751,426.66,Ricoh Uk Ltd
CO,Central Services,Corporate & Democratic Core,Corporate & Democratic,Supplies & Services,"Printing, Stationery & General Office Expenses",Photocopying Allocation,22/01/2015,144751,213.34,Ricoh Uk Ltd
CO,Central Services to the Public,Management & Support Services,Finance,Supplies & Services,"Printing, Stationery & General Office Expenses",Photocopying Costs,08/01/2015,140450,641.35,Ricoh Uk Ltd
CO,Central Services to the Public,Elections,Legal & Democratic,Supplies & Services,"Printing, Stationery & General Office Expenses",Photocopying Costs,22/01/2015,144752,663.73,Ricoh Uk Ltd
CO,Environmental & Regulatory,Regulatory Services,Estates and Economic Development ,Supplies & Services,"Equipment, Furniture & Materials",Purchase Equip + Materials,29/01/2015,145573,664.9,Cjs Portsmouth Ltd
IN,Central Services to the Public,Emergency Planning,Corporate & Democratic,Supplies & Services,Grants & Subscriptions,Grants,08/01/2015,143903,811.65,Personal data - Data Protection Act 1998
CO,Planning & Development,Development Control,Planning & Building,Supplies & Services,Miscellaneous Expenses,Health And Safety,08/01/2015,143670,684,Posturite Limited
CO,Cultural & Related,Open Spaces,Environmental,Supplies & Services,"Printing, Stationery & General Office Expenses",Training Courses,29/01/2015,144953,696.2,Radiodetection Ltd
CO,Housing Services,Homelessness,Housing and Environmental Health ,Premises related Expenditure,Repairs Alterations & Maintenance of Buildings,Building Maint - Non Estates,29/01/2015,145756,838.74,Aster Communities
CO,Central Services to the Public,Local Tax Collection,Revenues,Supplies & Services,Communications & Computing,Software Maintenance,15/01/2015,143852,279.62,Northgate Information Solutions Uk Ltd
CO,Central Services to the Public,Local Tax Collection,Revenues,Supplies & Services,Communications & Computing,Software Maintenance,15/01/2015,143852,69.9,Northgate Information Solutions Uk Ltd
CO,Housing Services,Housing Benefits ,Revenues,Supplies & Services,Communications & Computing,Software Maintenance,15/01/2015,143852,174.76,Northgate Information Solutions Uk Ltd
CO,Central Services to the Public,Local Tax Collection,Revenues,Supplies & Services,Communications & Computing,Software Maintenance,15/01/2015,143852,174.76,Northgate Information Solutions Uk Ltd
ST,Cultural & Related,Culture & Heritage,Community and Leisure ,Supplies & Services,Services,Tutors,14/01/2015,143871,870,Personal data - Data Protection Act 1998
CO,Central Services to the Public,Management & Support Services,Estates and Economic Development ,Third Party Payments,Other Establishments,Private Contractors,22/01/2015,145107,729.8,Corrigenda Ltd
CO,Central Services to the Public,Management & Support Services,Estates and Economic Development ,Supplies & Services,"Equipment, Furniture & Materials",Purchase Equip + Materials,22/01/2015,144690,730.15,Vp Bastion Limited
CO,Central Services to the Public,Management & Support Services,Estates and Economic Development ,Supplies & Services,"Equipment, Furniture & Materials",Purchase Materials (Job Cost),29/01/2015,145562,739.67,Discount Tiles Ltd
CO,External Trading Accounts,Industrial Estates,Estates and Economic Development ,Premises related Expenditure,Repairs Alterations & Maintenance of Buildings,Building Maint - Non Estates,22/01/2015,144705,750,The Genesis Design Studio Ltd
CO,Environmental & Regulatory,Waste management,Environmental,Transport Related Expenditure,Direct Transport Costs,Repair Materials,22/01/2015,144183,757.69,Dennis Eagle Ltd
CO,Central Services to the Public,Management & Support Services,Estates and Economic Development ,Premises related Expenditure,Repairs Alterations & Maintenance of Buildings,Building Maint - Non Estates,29/01/2015,145558,765.16,Cofely Ltd
PS,Planning & Development,Community Development,Community and Leisure ,Supplies & Services,Grants & Subscriptions,Grants,21/01/2015,144971,950,Nursling & Rownhams Hall Management Committee
CO,Planning & Development,Development Control,Planning & Building,Supplies & Services,Services,Project Consultancy - Policy,29/01/2015,145365,795,Reading Agricultural Consultants Ltd
CO,Central Services to the Public,Local Tax Collection,Revenues,Supplies & Services,"Printing, Stationery & General Office Expenses",Written Media,21/01/2015,144768,200,Airey Consultancy Services Ltd
CO,Central Services to the Public,Local Tax Collection,Revenues,Supplies & Services,"Printing, Stationery & General Office Expenses",Written Media,21/01/2015,144768,200,Airey Consultancy Services Ltd
CO,Housing Services,Housing Benefits ,Revenues,Supplies & Services,"Printing, Stationery & General Office Expenses",Written Media,21/01/2015,144768,200,Airey Consultancy Services Ltd
CO,Central Services to the Public,Local Tax Collection,Revenues,Supplies & Services,"Printing, Stationery & General Office Expenses",Written Media,21/01/2015,144768,200,Airey Consultancy Services Ltd
CO,Central Services to the Public,Elections,Legal & Democratic,Supplies & Services,"Printing, Stationery & General Office Expenses",Postage Costs,15/01/2015,143896,210.7,Royal Mail
CO,Central Services to the Public,Management & Support Services,Finance,Supplies & Services,"Printing, Stationery & General Office Expenses",Postage Costs,15/01/2015,143896,60.9,Royal Mail
CO,Planning & Development,Development Control,Planning & Building,Supplies & Services,"Printing, Stationery & General Office Expenses",Postage Costs,15/01/2015,143896,54.39,Royal Mail
CO,Planning & Development,Planning Policy,Plan Pol & Transport,Supplies & Services,"Printing, Stationery & General Office Expenses",Postage Costs,15/01/2015,143896,35.77,Royal Mail
CO,Central Services,Corporate & Democratic Core,Corporate & Democratic,Supplies & Services,"Printing, Stationery & General Office Expenses",Postage Costs,15/01/2015,143896,445.61,Royal Mail
CO,"Highways, Roads & Transport",Parking Services,Plan Pol & Transport,Supplies & Services,"Equipment, Furniture & Materials",Purchase Equip + Materials,22/01/2015,144450,820.3,Cale Briparc Ltd
CO,"Highways, Roads & Transport",Parking Services,Plan Pol & Transport,Supplies & Services,"Printing, Stationery & General Office Expenses",Training Courses,08/01/2015,143592,820.6,Plan4safety
CH,Planning & Development,Community Development,Community and Leisure ,Supplies & Services,Grants & Subscriptions,Grants,28/01/2015,143330,1000,Action For Children
CO,Environmental & Regulatory,Regulatory Services,Housing and Environmental Health ,Supplies & Services,Grants and subscriptions,Capital Grants,08/01/2015,143890,1000,Epw Construction
PA,Central Services,Corporate & Democratic Core,Corporate & Democratic,Supplies & Services,Services,Professional Advice,15/01/2015,144133,833.33,Coffin Mew Llp
CO,Environmental & Regulatory,Regulatory Services,Housing and Environmental Health ,Supplies & Services,Miscellaneous Expenses,Kennel fees,15/01/2015,144214,840,Anton Vets Ltd
CO,Central Services to the Public,Management & Support Services,Estates and Economic Development ,Supplies & Services,Communications & Computing,Telephone Tracking System,08/01/2015,142265,60,Ctrack Uk Limited
CO,Central Services to the Public,Management & Support Services,Estates and Economic Development ,Supplies & Services,Communications & Computing,Telephone Tracking System,22/01/2015,144164,60,Ctrack Uk Limited
CO,Environmental & Regulatory,Regulatory Services,Estates and Economic Development ,Supplies & Services,Communications & Computing,Telephone Tracking System,08/01/2015,142265,20,Ctrack Uk Limited
CO,Environmental & Regulatory,Regulatory Services,Estates and Economic Development ,Supplies & Services,Communications & Computing,Telephone Tracking System,22/01/2015,144164,20,Ctrack Uk Limited
CO,Cultural & Related,Open Spaces,Environmental,Supplies & Services,Communications & Computing,Telephone Tracking System,08/01/2015,142265,280,Ctrack Uk Limited
CO,Cultural & Related,Open Spaces,Environmental,Supplies & Services,Communications & Computing,Telephone Tracking System,22/01/2015,144164,280,Ctrack Uk Limited
CO,Environmental & Regulatory,Street Cleansing (not chargeable to Highways),Environmental,Supplies & Services,Communications & Computing,Telephone Tracking System,08/01/2015,142265,230,Ctrack Uk Limited
CO,Environmental & Regulatory,Street Cleansing (not chargeable to Highways),Environmental,Supplies & Services,Communications & Computing,Telephone Tracking System,22/01/2015,144164,230,Ctrack Uk Limited
CO,Environmental & Regulatory,Waste management,Environmental,Supplies & Services,Communications & Computing,Telephone Tracking System,08/01/2015,142265,210,Ctrack Uk Limited
CO,Environmental & Regulatory,Waste management,Environmental,Supplies & Services,Communications & Computing,Telephone Tracking System,22/01/2015,144164,210,Ctrack Uk Limited
CO,Environmental & Regulatory,Waste management,Environmental,Supplies & Services,Communications & Computing,Telephone Tracking System,08/01/2015,142265,20,Ctrack Uk Limited
CO,Environmental & Regulatory,Waste management,Environmental,Supplies & Services,Communications & Computing,Telephone Tracking System,22/01/2015,144164,20,Ctrack Uk Limited
CO,Central Services to the Public,Management & Support Services,Environmental,Supplies & Services,Communications & Computing,Telephone Tracking System,08/01/2015,142265,30,Ctrack Uk Limited
CO,Central Services to the Public,Management & Support Services,Environmental,Supplies & Services,Communications & Computing,Telephone Tracking System,22/01/2015,144164,30,Ctrack Uk Limited
CO,"Highways, Roads & Transport",Highways and roads - maintenance,Plan Pol & Transport,Supplies & Services,"Printing, Stationery & General Office Expenses",Photocopying Costs,08/01/2015,143435,853.68,Ricoh Uk Ltd
CO,Housing Services,Homelessness,Housing and Environmental Health ,Premises related Expenditure,Repairs Alterations & Maintenance of Buildings,Building Maint - Non Estates,29/01/2015,145755,1042.64,Aster Communities
CO,Environmental & Regulatory,Waste management,Environmental,Employees,Indirect Employee Expenses,Agency Staff - Waged Posts,22/01/2015,144717,884.35,365 Supply Ltd
CO,Environmental & Regulatory,Waste management,Environmental,Employees,Indirect Employee Expenses,Agency Staff - Waged Posts,29/01/2015,145581,884.74,365 Supply Ltd
CO,Central Services to the Public,Management & Support Services,Environmental,Transport Related Expenditure,Direct Transport Costs,Oils,29/01/2015,144765,885.6,Fuchs Lubricants (Uk) Plc
CO,Cultural & Related,Open Spaces,Environmental,Supplies & Services,"Equipment, Furniture & Materials",Purchase Equip + Materials,08/01/2015,143625,893.33,Radiodetection Ltd
CO,Central Services,Corporate & Democratic Core,Corporate & Democratic,Supplies & Services,Miscellaneous Expenses,External Audit Fees,22/01/2015,144192,900,Ernst & Young Llp
CO,Central Services to the Public,Management & Support Services,Estates and Economic Development ,Premises related Expenditure,Repairs Alterations & Maintenance of Buildings,Planned Maintenance - Non Est,29/01/2015,145571,910,Alarms & Electrical (Devizes) Ltd
HM,Planning & Development,Development Control,Planning & Building,Supplies & Services,Services,Professional Fees,15/01/2015,143748,946.1,Valuation Office Agency
CO,Central Services to the Public,Local Tax Collection,Revenues,Supplies & Services,Communications & Computing,Software Maintenance,22/01/2015,144772,950,Northgate Information Solutions Uk Ltd
CO,Central Services to the Public,Management & Support Services,IT,Supplies & Services,Communications & Computing,Land Line Telephone Charges,08/01/2015,143673,958,Vodafone Business Services
CO,Central Services to the Public,Management & Support Services,Estates and Economic Development ,Third Party Payments,Other Establishments,Private Contractors,29/01/2015,145575,959.26,Options Flooring Ltd
CO,Central Services to the Public,Management & Support Services,Chief Executive's,Supplies & Services,"Printing, Stationery & General Office Expenses",Training Courses,29/01/2015,144682,960,Covalent Software Ltd
CO,Central Services to the Public,Management & Support Services,Estates and Economic Development ,Premises related Expenditure,Energy Costs,Gas,29/01/2015,144734,965.32,Total Gas & Power Ltd
IN,Central Services to the Public,Emergency Planning,Corporate & Democratic,Supplies & Services,Grants & Subscriptions,Grants,08/01/2015,143883,1197.51,Personal data - Data Protection Act 1998
CO,External Trading Accounts,Industrial Estates,Estates and Economic Development ,Premises related Expenditure,Energy Costs,Gas,29/01/2015,144737,1005.19,Total Gas & Power Ltd
CO,Central Services to the Public,Management & Support Services,Environmental,Transport Related Expenditure,Direct Transport Costs,Diesel,08/01/2015,143588,1005.2,Wessex Petroleum Limited
CO,Cultural & Related,Recreation & Sport,Community and Leisure ,Premises related Expenditure,Grounds Maintenance Costs,Gm - Additional Works,08/01/2015,142831,1031.75,Hillier Nurseries Limited
CO,Central Services to the Public,Management & Support Services,Estates and Economic Development ,Supplies & Services,"Equipment, Furniture & Materials",Purchase Materials (Job Cost),29/01/2015,145563,1058.86,Wolseley Uk Limited
CO,Central Services to the Public,Local Tax Collection,Revenues,Supplies & Services,Services,Professional Fees,29/01/2015,145588,75,Ross & Roberts
CO,Central Services to the Public,Management & Support Services,IT,Supplies & Services,Communications & Computing,Computer Software,08/01/2015,143418,1075,Campbell Associates Ltd
CO,Planning & Development,Development Control,Planning & Building,Supplies & Services,"Printing, Stationery & General Office Expenses",Training Courses,29/01/2015,145580,1075,Trevor Roberts Associates
CO,Environmental & Regulatory,Street Cleansing (not chargeable to Highways),Environmental,Supplies & Services,"Printing, Stationery & General Office Expenses",External Printing,29/01/2015,144699,1080,Red Zulu Limited
CO,Central Services to the Public,Management & Support Services,Plan Pol & Transport,Supplies & Services,"Equipment, Furniture & Materials",Purchase Equip + Materials,08/01/2015,143182,1083.36,Openreach Bt
CO,Central Services to the Public,Management & Support Services,Finance,Supplies & Services,"Printing, Stationery & General Office Expenses",Written Media,29/01/2015,145608,1308.75,Cipfa
CO,Environmental & Regulatory,Waste management,Environmental,Transport Related Expenditure,Direct Transport Costs,Repair Materials,29/01/2015,144993,1008.55,Dennis Eagle Ltd
CO,Central Services to the Public,Management & Support Services,Environmental,Transport Related Expenditure,Direct Transport Costs,Repair Materials,29/01/2015,144993,87.49,Dennis Eagle Ltd
CO,Central Services to the Public,Management & Support Services,Estates and Economic Development ,Premises related Expenditure,Repairs Alterations & Maintenance of Buildings,Building Maint - Non Estates,22/01/2015,145106,1100,Nuserve Ltd
CO,Central Services to the Public,Management & Support Services,Estates and Economic Development ,Third Party Payments,Other Establishments,Contract Catering,08/01/2015,142638,1115,Edwards And Ward Ltd
CO,Central Services to the Public,Management & Support Services,Estates and Economic Development ,Supplies & Services,Grants & Subscriptions,Subscriptions,22/01/2015,144455,1120,Rics
CO,Environmental & Regulatory,Waste management,Environmental,Transport Related Expenditure,Direct Transport Costs,External Garages,22/01/2015,144668,898,Dennis Eagle Ltd
CO,Environmental & Regulatory,Waste management,Environmental,Transport Related Expenditure,Direct Transport Costs,Repair Materials,22/01/2015,144668,235.47,Dennis Eagle Ltd
CO,Central Services to the Public,Management & Support Services,Finance,Supplies & Services,"Printing, Stationery & General Office Expenses",Postage Costs,08/01/2015,143446,1148.35,Whistl South West Ltd
CO,Environmental & Regulatory,Waste management,Environmental,Transport Related Expenditure,Direct Transport Costs,Repair Materials,08/01/2015,143582,1150.3,Dennis Eagle Ltd
CO,Planning & Development,Development Control,Planning & Building,Supplies & Services,"Printing, Stationery & General Office Expenses",Stationery,08/01/2015,143664,829.4,Supplies Team Ltd
CO,Planning & Development,Development Control,Planning & Building,Supplies & Services,"Printing, Stationery & General Office Expenses",Print Consumables,08/01/2015,143664,339.34,Supplies Team Ltd
CO,Environmental & Regulatory,Regulatory Services,Housing and Environmental Health ,Third Party Payments,Other Establishments,Private Contractors,15/01/2015,144454,1404,Cedar Pest
CO,Environmental & Regulatory,Street Cleansing (not chargeable to Highways),Environmental,Transport Related Expenditure,Contract Hire and Operating Leases,Vehicles-Hired\Leased,15/01/2015,143854,1170,Dawsonrentals Sweepers
IN,Central Services to the Public,Emergency Planning,Corporate & Democratic,Supplies & Services,Grants & Subscriptions,Grants,22/01/2015,145124,1413.6,Personal data - Data Protection Act 1998
PS,"Highways, Roads & Transport",Parking Services,Plan Pol & Transport,Supplies & Services,Services,Professional Fees,29/01/2015,144189,1416.8,Patrol
CO,Cultural & Related,Culture & Heritage,Community and Leisure ,Supplies & Services,"Equipment, Furniture & Materials",Purchase Equip + Materials,08/01/2015,143751,450,Dirty/Dc
CO,Cultural & Related,Culture & Heritage,Community and Leisure ,Supplies & Services,Miscellaneous Expenses,Booking Of Acts,08/01/2015,143751,1000,Dirty/Dc
CO,Central Services to the Public,Management & Support Services,IT,Supplies & Services,"Equipment, Furniture & Materials",Purchase Equip + Materials,22/01/2015,144346,1217.06,Xerox (Uk) Ltd
CO,Central Services to the Public,Management & Support Services,Plan Pol & Transport,Premises related Expenditure,Repairs Alterations & Maintenance of Buildings,General Repairs,15/01/2015,143855,1225,Land Development Services
CO,Planning & Development,Building Control,Planning & Building,Employees,Indirect Employee Expenses,Staff Professional Fees,08/01/2015,143836,1230.87,Bm Trada
CO,Central Services to the Public,Management & Support Services,Environmental,Supplies & Services,Communications & Computing,Software Maintenance,22/01/2015,144695,1240,Triscan Systems Ltd
CO,Central Services to the Public,Management & Support Services,Estates and Economic Development ,Third Party Payments,Other Establishments,Private Contractors,29/01/2015,145115,1246.1,Options Flooring Ltd
CO,Central Services to the Public,Local Tax Collection,Revenues,Supplies & Services,Miscellaneous Expenses,All Pay Fees,08/01/2015,143756,1501.57,Allpay Limited
CO,Cultural & Related,Culture & Heritage,Community and Leisure ,Supplies & Services,Miscellaneous Expenses,Booking Of Acts,22/01/2015,144957,1538.66,Dirty/Dc
PS,Planning & Development,Planning Policy,Plan Pol & Transport,Supplies & Services,Grants & Subscriptions,Grants,08/01/2015,143838,1538.84,Hampshire County Council
CO,Planning & Development,Development Control,Planning & Building,Employees,Indirect Employee Expenses,Temporary Staff,22/01/2015,144721,1295,Hays Specialist Recruitment
CO,Planning & Development,Development Control,Planning & Building,Employees,Indirect Employee Expenses,Temporary Staff,08/01/2015,143192,1298.6,Hays Specialist Recruitment
CH,Planning & Development,Community Development,Community and Leisure ,Supplies & Services,Grants & Subscriptions,Grants,29/01/2015,145757,1600,Partnership Of Andover Trees United & Walks
CO,Central Services to the Public,Elections,Legal & Democratic,Supplies & Services,"Printing, Stationery & General Office Expenses",External Printing,22/01/2015,144344,1603.2,Financial Data Management Plc
CO,Environmental & Regulatory,Regulatory Services,Estates and Economic Development ,Premises related Expenditure,Water Services,Water And Sewerage Charges,15/01/2015,144470,1617.14,Southern Water
CO,Cultural & Related,Recreation & Sport,Community and Leisure ,Premises related Expenditure,Water Services,Water And Sewerage Charges,15/01/2015,144473,1626.35,Southern Water
CO,Central Services to the Public,Management & Support Services,IT,Supplies & Services,"Equipment, Furniture & Materials",Equipment Hire,22/01/2015,144345,551.25,Xerox (Uk) Ltd
CO,Central Services to the Public,Management & Support Services,IT,Supplies & Services,"Equipment, Furniture & Materials",Purchase Equip + Materials,22/01/2015,144345,835.41,Xerox (Uk) Ltd
CO,Environmental & Regulatory,"Cemetery, Cremation and Mortuary Services",Community and Leisure ,Supplies & Services,Communications & Computing,Computer Hardware,08/01/2015,143593,1390,Edge It Systems Limited
CO,Environmental & Regulatory,Regulatory Services,Housing and Environmental Health ,Supplies & Services,Grants and subscriptions,Capital Grants,08/01/2015,143891,1670,Liftech Systems (Se) Ltd
CO,Central Services to the Public,Management & Support Services,Finance,Supplies & Services,"Printing, Stationery & General Office Expenses",Postage Costs,08/01/2015,142651,1412.94,Whistl South West Ltd
CO,Cultural & Related,Open Spaces,Environmental,Supplies & Services,"Equipment, Furniture & Materials",Purchase Equip + Materials,22/01/2015,144783,1420,Fleet (Line Markers) Ltd
CO,Cultural & Related,Open Spaces,Environmental,Supplies & Services,"Equipment, Furniture & Materials",Purchase Equip + Materials,29/01/2015,144782,1420,Fleet (Line Markers) Ltd
CO,Planning & Development,Development Control,Planning & Building,Supplies & Services,Miscellaneous Expenses,Planning Appeal Costs,14/01/2015,143870,1431.9,Tanner & Tilley Planning Consultants
CO,Central Services to the Public,Emergency Planning,Corporate & Democratic,Supplies & Services,Grants & Subscriptions,Grants,15/01/2015,144486,1739,The George Inn
CO,Central Services to the Public,Management & Support Services,Finance,Supplies & Services,"Printing, Stationery & General Office Expenses",Postage Costs,08/01/2015,142650,1449.81,Whistl South West Ltd
CO,Cultural & Related,Culture & Heritage,Estates and Economic Development ,Premises related Expenditure,Energy Costs,Gas,29/01/2015,144735,1479.69,Total Gas & Power Ltd
CO,Environmental & Regulatory,Waste management,Environmental,Supplies & Services,Communications & Computing,Computer Software,29/01/2015,145117,1499.34,Northgate Information Solutions Uk Ltd
CO,Environmental & Regulatory,"Cemetery, Cremation and Mortuary Services",Community and Leisure ,Supplies & Services,"Equipment, Furniture & Materials",Purchase Equip + Materials,08/01/2015,139785,1500.03,Pictorial Meadows Limited
CO,Central Services to the Public,Management & Support Services,Estates and Economic Development ,Third Party Payments,Other Establishments,Private Contractors,15/01/2015,144458,1537,Andover Glass Works Ltd
CO,External Trading Accounts,Industrial Estates,Estates and Economic Development ,Premises related Expenditure,Repairs Alterations & Maintenance of Buildings,Planned Maintenance - Non Est,15/01/2015,144140,1542.03,Rentokil Initial Uk Ltd
CO,Cultural & Related,Culture & Heritage,Community and Leisure ,Premises related Expenditure,Repairs Alterations & Maintenance of Buildings,Planned Maintenance - Non Est,29/01/2015,145600,1550,Hawthorn Theatrical Ltd
CO,Cultural & Related,Culture & Heritage,Community and Leisure ,Supplies & Services,Miscellaneous Expenses,Booking Of Acts,22/01/2015,144471,1550,Centre Stage Promotions Ltd
CO,Central Services to the Public,Management & Support Services,IT,Supplies & Services,Communications & Computing,Hardware Maintenance,08/01/2015,143628,1586.64,Konica Minolta Business Soltns (Uk) Ltd
CO,Central Services to the Public,Management & Support Services,IT,Supplies & Services,Communications & Computing,Hardware Maintenance,22/01/2015,144465,1586.64,Konica Minolta Business Soltns (Uk) Ltd
CO,Central Services to the Public,Management & Support Services,Estates and Economic Development ,Third Party Payments,Other Establishments,Contract Catering,29/01/2015,145590,1587.9,Edwards And Ward Ltd
IN,Central Services to the Public,Emergency Planning,Corporate & Democratic,Supplies & Services,Grants & Subscriptions,Grants,15/01/2015,144484,1980,Personal data - Data Protection Act 1998
CH,Planning & Development,Community Development,Community and Leisure ,Supplies & Services,Grants & Subscriptions,Grants,28/01/2015,145626,2000,Andover St Johns Ambulance
CH,Planning & Development,Community Development,Community and Leisure ,Supplies & Services,Grants & Subscriptions,Grants,28/01/2015,145627,2000,Enham Trust
CH,Planning & Development,Community Development,Community and Leisure ,Supplies & Services,Grants & Subscriptions,Grants,29/01/2015,145758,2000,Youth In Romsey
CO,Central Services to the Public,Management & Support Services,Estates and Economic Development ,Third Party Payments,Other Establishments,Contract Catering,08/01/2015,142639,1667.46,Edwards And Ward Ltd
CO,Central Services to the Public,Management & Support Services,Estates and Economic Development ,Third Party Payments,Other Establishments,Contract Catering,29/01/2015,145591,1667.46,Edwards And Ward Ltd
ST,Environmental & Regulatory,Regulatory Services,Housing and Environmental Health ,Supplies & Services,Grants and subscriptions,Capital Grants,22/01/2015,145138,2014.45,Personal data - Data Protection Act 1998
CO,Planning & Development,Economic Development,Estates and Economic Development ,Supplies & Services,Catering,Catering,08/01/2015,143848,1710.5,Miller & Mckaig Ltd
CO,Planning & Development,Development Control,Planning & Building,Employees,Indirect Employee Expenses,Temporary Staff,22/01/2015,144168,1750,Hays Specialist Recruitment
IN,Central Services to the Public,Emergency Planning,Corporate & Democratic,Supplies & Services,Grants & Subscriptions,Grants,08/01/2015,143904,2190.91,Personal data - Data Protection Act 1998
CO,Central Services to the Public,Management & Support Services,IT,Supplies & Services,"Equipment, Furniture & Materials",IT Supp and Serv AMP,08/01/2015,143675,1848.46,Dell Computer Corporation Ltd
CO,Central Services to the Public,Management & Support Services,Environmental,Transport Related Expenditure,Direct Transport Costs,Diesel,08/01/2015,143589,1851.2,Wessex Petroleum Limited
CO,Environmental & Regulatory,Street Cleansing (not chargeable to Highways),Environmental,Supplies & Services,Miscellaneous Expenses,Vehicle insurance claims,08/01/2015,142957,2250,Zurich Insurance Company
CO,Planning & Development,Development Control,Planning & Building,Supplies & Services,Miscellaneous Expenses,Planning Appeal Costs,14/01/2015,143767,1900,Tanner & Tilley Planning Consultants
CO,Central Services to the Public,Management & Support Services,Estates and Economic Development ,Supplies & Services,Communications & Computing,Software Maintenance,29/01/2015,144992,1950,Integrated Solutions Ltd
CO,Planning & Development,Development Control,Planning & Building,Supplies & Services,"Printing, Stationery & General Office Expenses",Photocopying Costs,22/01/2015,144748,1957.57,Ricoh Uk Ltd
IN,Planning & Development,Planning Policy,Plan Pol & Transport,Supplies & Services,"Printing, Stationery & General Office Expenses",External Printing,08/01/2015,143677,18,Personal data - Data Protection Act 1998
IN,Planning & Development,Planning Policy,Plan Pol & Transport,Supplies & Services,Communications & Computing,Land Line Telephone Charges,08/01/2015,143677,22.25,Personal data - Data Protection Act 1998
IN,Planning & Development,Planning Policy,Plan Pol & Transport,Supplies & Services,Services,Project Consultancy - Policy,08/01/2015,143677,2335.26,Personal data - Data Protection Act 1998
CO,Central Services to the Public,Local Tax Collection,Revenues,Supplies & Services,Services,Professional Fees,15/01/2015,144228,193.87,Ross & Roberts
CO,Central Services to the Public,Management & Support Services,Environmental,Transport Related Expenditure,Direct Transport Costs,Diesel,22/01/2015,144180,2017.64,Wessex Petroleum Limited
IN,Environmental & Regulatory,Regulatory Services,Housing and Environmental Health ,Supplies & Services,Grants and subscriptions,Capital Grants,29/01/2015,145793,2492.4,Personal data - Data Protection Act 1998
IN,Environmental & Regulatory,Regulatory Services,Housing and Environmental Health ,Supplies & Services,Grants and subscriptions,Capital Grants,29/01/2015,145792,2496,Personal data - Data Protection Act 1998
CO,Cultural & Related,Culture & Heritage,Community and Leisure ,Supplies & Services,Catering,Caf�/ bar consumables,15/01/2015,143663,20.82,Carlsberg Uk Ltd
CO,Cultural & Related,Culture & Heritage,Community and Leisure ,Supplies & Services,Catering,Non-Contract Catering,15/01/2015,143663,2059.43,Carlsberg Uk Ltd
CO,Environmental & Regulatory,Regulatory Services,Housing and Environmental Health ,Supplies & Services,Grants and subscriptions,Capital Grants,15/01/2015,144494,2500,Outlook Window Systems Limited
CO,Central Services to the Public,Management & Support Services,IT,Employees,Indirect Employee Expenses,Temporary Staff,29/01/2015,145559,2111,Acs (Uk) Ltd
CO,Central Services to the Public,Management & Support Services,IT,Supplies & Services,Communications & Computing,Hardware Maintenance,22/01/2015,144193,2116,Virgin Media Payments Ltd
CO,Cultural & Related,Culture & Heritage,Community and Leisure ,Supplies & Services,Miscellaneous Expenses,Booking Of Acts,29/01/2015,145410,2255.63,Sympathetic Developments
CO,Central Services to the Public,Management & Support Services,Estates and Economic Development ,Transport Related Expenditure,Direct Transport Costs,Tyres,15/01/2015,143835,119.88,Ats Euromaster Limited
CO,Cultural & Related,Open Spaces,Environmental,Transport Related Expenditure,Direct Transport Costs,Tyres,15/01/2015,143835,341.33,Ats Euromaster Limited
CO,Environmental & Regulatory,Street Cleansing (not chargeable to Highways),Environmental,Transport Related Expenditure,Direct Transport Costs,Tyres,15/01/2015,143835,209.93,Ats Euromaster Limited
CO,Environmental & Regulatory,Waste management,Environmental,Transport Related Expenditure,Direct Transport Costs,Tyres,15/01/2015,143835,1402.88,Ats Euromaster Limited
CO,Environmental & Regulatory,Waste management,Environmental,Transport Related Expenditure,Direct Transport Costs,Tyres,15/01/2015,143835,218.52,Ats Euromaster Limited
CO,Cultural & Related,Culture & Heritage,Community and Leisure ,Supplies & Services,Miscellaneous Expenses,Booking Of Acts,15/01/2015,144199,2400,Oddsocks Communications Ltd
CO,Planning & Development,Economic Development,Estates and Economic Development ,Supplies & Services,Grants & Subscriptions,Grants,08/01/2015,143832,2443.8,Heartflood Ltd
CO,External Trading Accounts,Industrial Estates,Estates and Economic Development ,Supplies & Services,Services,Professional Fees,22/01/2015,145099,2500,Savills (L&P) Ltd
PS,"Highways, Roads & Transport",Highways and roads - maintenance,Plan Pol & Transport,Premises related Expenditure,Repairs Alterations & Maintenance of Buildings,Highways Repairs,29/01/2015,145594,3000,Highways Agency
CO,Cultural & Related,Open Spaces,Environmental,Transport Related Expenditure,Direct Transport Costs,Environmental transport costs AMP,15/01/2015,143646,2520,New Forest Farm Machinery Ltd
CO,Central Services to the Public,Management & Support Services,IT,Supplies & Services,Communications & Computing,Software Maintenance,22/01/2015,144196,2521.62,Vodafone Cable & Wireless Uk
CO,Cultural & Related,Open Spaces,Environmental,Transport Related Expenditure,Direct Transport Costs,Repair Materials,22/01/2015,144204,2531.35,T H White Ltd
CO,Environmental & Regulatory,Waste management,Environmental,Supplies & Services,"Printing, Stationery & General Office Expenses",External Printing,22/01/2015,145100,2532.9,Longcombe Labels Ltd
CO,Central Services to the Public,Management & Support Services,Estates and Economic Development ,Premises related Expenditure,Energy Costs,Gas,29/01/2015,144741,2543.5,Total Gas & Power Ltd
IN,Central Services to the Public,Emergency Planning,Corporate & Democratic,Supplies & Services,Grants & Subscriptions,Grants,08/01/2015,143898,3134.36,Personal data - Data Protection Act 1998
IN,Planning & Development,Planning Policy,Plan Pol & Transport,Supplies & Services,Services,Project Consultancy - Policy,29/01/2015,145615,2613.9,Justin Gardner Consulting
CO,Environmental & Regulatory,Regulatory Services,Housing and Environmental Health ,Supplies & Services,Grants and subscriptions,Capital Grants,29/01/2015,145794,3192.03,Northfield Property Solutions Ltd
CO,Central Services to the Public,Emergency Planning,Corporate & Democratic,Supplies & Services,Grants & Subscriptions,Grants,15/01/2015,144483,3200,Personal data - Data Protection Act 1998
CO,Cultural & Related,Culture & Heritage,Community and Leisure ,Supplies & Services,Miscellaneous Expenses,Booking Of Acts,15/01/2015,144359,2686.25,Artistes International Management
CO,Central Services to the Public,Management & Support Services,Environmental,Transport Related Expenditure,Direct Transport Costs,Diesel,29/01/2015,144708,2690.1,Wessex Petroleum Limited
CO,Environmental & Regulatory,Regulatory Services,Housing and Environmental Health ,Supplies & Services,Grants and subscriptions,Capital Grants,29/01/2015,145795,3265.6,Spc Bathrooms & Kitchens
CO,Central Services to the Public,Management & Support Services,Environmental,Transport Related Expenditure,Direct Transport Costs,Diesel,22/01/2015,144187,2733.61,Wessex Petroleum Limited
IN,Central Services to the Public,Emergency Planning,Corporate & Democratic,Supplies & Services,Grants & Subscriptions,Grants,08/01/2015,143884,3291.72,Personal data - Data Protection Act 1998
CO,Cultural & Related,Culture & Heritage,Community and Leisure ,Supplies & Services,Miscellaneous Expenses,Booking Of Acts,29/01/2015,145411,2772.33,Sweeney Entertainments
PS,Cultural & Related,Culture & Heritage,Community and Leisure ,Premises related Expenditure,Energy Costs,Electricity,22/01/2015,144761,1336.8,Sparsholt College Hampshire
PS,Cultural & Related,Culture & Heritage,Community and Leisure ,Premises related Expenditure,Energy Costs,Gas,22/01/2015,144761,1254.34,Sparsholt College Hampshire
PS,Cultural & Related,Culture & Heritage,Community and Leisure ,Premises related Expenditure,Water Services,Water And Sewerage Charges,22/01/2015,144761,254.34,Sparsholt College Hampshire
CO,Environmental & Regulatory,Regulatory Services,Housing and Environmental Health ,Supplies & Services,Grants and subscriptions,Capital Grants,15/01/2015,144495,3386.45,Lifestyle Solutions
PS,Central Services to the Public,Local Land Charges,Legal & Democratic,Supplies & Services,Miscellaneous Expenses,Land Charges Fees,29/01/2015,145564,3450.25,Hampshire County Council
CO,Central Services to the Public,Management & Support Services,Environmental,Transport Related Expenditure,Direct Transport Costs,Diesel,08/01/2015,143583,2899.93,Wessex Petroleum Limited
CO,Central Services to the Public,Management & Support Services,Environmental,Transport Related Expenditure,Direct Transport Costs,Diesel,08/01/2015,143311,2904.97,Wessex Petroleum Limited
CO,Environmental & Regulatory,Community Development,Community and Leisure ,Transport Related Expenditure,Contract Hire and Operating Leases,Officer lease cars,29/01/2015,144666,3581.4,Volkswagen Group Leasing
CO,Cultural & Related,Tourism,Estates and Economic Development ,Supplies & Services,Miscellaneous Expenses,Design Fees,22/01/2015,144766,3000,The Marketing Collective Ltd
PS,Planning & Development,Economic Development,Estates and Economic Development ,Supplies & Services,Miscellaneous Expenses,Promotions / Special Events,29/01/2015,145379,3000,Eastleigh Borough Council
CO,Planning & Development,Development Control,Planning & Building,Supplies & Services,Miscellaneous Expenses,Planning Appeal Costs,15/01/2015,143678,3100,Landshape Ltd
CO,Environmental & Regulatory,Regulatory Services,Housing and Environmental Health ,Supplies & Services,Grants and subscriptions,Capital Grants,22/01/2015,145137,3729.98,S & J Building Services (Uk) Ltd
CO,Central Services to the Public,Management & Support Services,Environmental,Transport Related Expenditure,Direct Transport Costs,Diesel,29/01/2015,145397,3187.44,Wessex Petroleum Limited
CO,Cultural & Related,Recreation & Sport,Community and Leisure ,Premises related Expenditure,Repairs Alterations & Maintenance of Buildings,Estates premises costs - AMP,08/01/2015,142104,3215.98,Kompan Ltd
CO,Environmental & Regulatory,Regulatory Services,Housing and Environmental Health ,Supplies & Services,Grants and subscriptions,Capital Grants,29/01/2015,145789,3890.5,Aster Property
CO,Environmental & Regulatory,Regulatory Services,Housing and Environmental Health ,Supplies & Services,Grants and subscriptions,Capital Grants,15/01/2015,144496,3896,Epw Construction
CO,Environmental & Regulatory,Regulatory Services,Housing and Environmental Health ,Supplies & Services,Grants and subscriptions,Capital Grants,29/01/2015,145797,3999,Dolphin Mobility
,Planning & Development,Development Control,Planning & Building,Supplies & Services,Miscellaneous Expenses,Planning Appeal Costs,29/01/2015,145605,3340,Adas Uk Ltd
CO,Central Services to the Public,Management & Support Services,Environmental,Transport Related Expenditure,Direct Transport Costs,Diesel,29/01/2015,145396,3541.6,Wessex Petroleum Limited
CO,Planning & Development,Planning Policy,Plan Pol & Transport,Supplies & Services,Services,Project Consultancy - Policy,22/01/2015,144725,3602.15,Dixon Searle Llp
CO,Central Services to the Public,Management & Support Services,Environmental,Transport Related Expenditure,Direct Transport Costs,Diesel,08/01/2015,143590,3703.33,Wessex Petroleum Limited
CO,Environmental & Regulatory,Regulatory Services,Housing and Environmental Health ,Supplies & Services,Grants and subscriptions,Capital Grants,29/01/2015,145791,4525,Bentley Mobility Services
CO,Central Services to the Public,Management & Support Services,Environmental,Transport Related Expenditure,Direct Transport Costs,Diesel,08/01/2015,143574,3798,Wessex Petroleum Limited
CO,Environmental & Regulatory,Regulatory Services,Housing and Environmental Health ,Supplies & Services,Grants and subscriptions,Capital Grants,29/01/2015,145796,4625,Liftability Ltd
CO,Cultural & Related,Recreation & Sport,Community and Leisure ,Third Party Payments,Other Establishments,ALC Management Contract-TVL,08/01/2015,143572,3916.66,Valley Leisure Ltd
CO,Housing Services,Homelessness,Housing and Environmental Health ,Transport Related Expenditure,Contract Hire and Operating Leases,Officer lease cars,08/01/2015,142917,4751.6,Arnold Clark Finance Ltd
CO,Central Services to the Public,Management & Support Services,IT,Supplies & Services,Services,Consultant Fees,29/01/2015,145375,4000,Astech Consultants Limited
CO,Central Services to the Public,Management & Support Services,Environmental,Transport Related Expenditure,Direct Transport Costs,Diesel,29/01/2015,144706,4035.15,Wessex Petroleum Limited
CO,Central Services to the Public,Management & Support Services,Finance,Supplies & Services,"Printing, Stationery & General Office Expenses",Postage Costs,29/01/2015,145759,5000,Neopost Ltd
IN,Central Services to the Public,Emergency Planning,Corporate & Democratic,Supplies & Services,Grants & Subscriptions,Grants,08/01/2015,143899,5000,Personal data - Data Protection Act 1998
IN,Central Services to the Public,Emergency Planning,Corporate & Democratic,Supplies & Services,Grants & Subscriptions,Grants,14/01/2015,144336,5000,Personal data - Data Protection Act 1998
IN,Central Services to the Public,Emergency Planning,Corporate & Democratic,Supplies & Services,Grants & Subscriptions,Grants,15/01/2015,144481,5000,Personal data - Data Protection Act 1998
IN,Central Services to the Public,Emergency Planning,Corporate & Democratic,Supplies & Services,Grants & Subscriptions,Grants,15/01/2015,144485,5000,Personal data - Data Protection Act 1998
IN,Central Services to the Public,Emergency Planning,Corporate & Democratic,Supplies & Services,Grants & Subscriptions,Grants,15/01/2015,144487,5000,Personal data - Data Protection Act 1998
IN,Central Services to the Public,Emergency Planning,Corporate & Democratic,Supplies & Services,Grants & Subscriptions,Grants,21/01/2015,144962,5000,Personal data - Data Protection Act 1998
IN,Central Services to the Public,Emergency Planning,Corporate & Democratic,Supplies & Services,Grants & Subscriptions,Grants,29/01/2015,145764,5000,Personal data - Data Protection Act 1998
,Planning & Development,Economic Development,Estates and Economic Development ,Supplies & Services,"Printing, Stationery & General Office Expenses",Training Courses,29/01/2015,144702,5000,Perfect Bore Manufacturing Ltd
,Central Services to the Public,Emergency Planning,Corporate & Democratic,Supplies & Services,Grants & Subscriptions,Grants,22/01/2015,145145,5000,Personal data - Data Protection Act 1998
PS,Cultural & Related,Recreation & Sport,Community and Leisure ,Supplies & Services,Miscellaneous Expenses,Promotions / Special Events,15/01/2015,144356,5125,Hampshire County Council
CO,Cultural & Related,Culture & Heritage,Community and Leisure ,Supplies & Services,Miscellaneous Expenses,Booking Of Acts,28/01/2015,144724,4352.19,Vienna Festival Ballet
CO,Central Services to the Public,Local Tax Collection,Revenues,Supplies & Services,Communications & Computing,Software Maintenance,08/01/2015,143601,2200,Northgate Information Solutions Uk Ltd
CO,Housing Services,Housing Benefits ,Revenues,Supplies & Services,Communications & Computing,Software Maintenance,08/01/2015,143601,2200,Northgate Information Solutions Uk Ltd
CO,Cultural & Related,Recreation & Sport,Community and Leisure ,Third Party Payments,Private contractors,Main Contractor Costs,15/01/2015,142626,4450,W F Brown Associates Ltd
,"Highways, Roads & Transport",Parking Services,Plan Pol & Transport,Supplies & Services,Services,Professional Fees,15/01/2015,144210,4464.09,Keyline Chartered Security Ltd
CO,Central Services to the Public,Management & Support Services,IT,Supplies & Services,Communications & Computing,Software Maintenance,22/01/2015,144182,4470.2,Fordway Solutions Ltd
CO,Central Services to the Public,Management & Support Services,Estates and Economic Development ,Supplies & Services,Services,Professional Fees,08/01/2015,143585,4950,Gep Environmental Ltd
CH,Planning & Development,Community Development,Community and Leisure ,Supplies & Services,Grants & Subscriptions,Grants,15/01/2015,144497,6000,Andover Neighbourcare
PS,Environmental & Regulatory,Community Development,Community and Leisure ,Employees,Indirect Employee Expenses,Temporary Staff,22/01/2015,144711,6124.8,Winchester City Council
PS,Central Services to the Public,Management & Support Services,Revenues,Employees,Direct Employee Expenses,Shared service staffing costs,15/01/2015,143847,6152.53,Winchester City Council
PS,Cultural & Related,Culture & Heritage,Community and Leisure ,Premises related Expenditure,Energy Costs,Electricity,29/01/2015,139837,146.5,Hampshire County Council
PS,"Highways, Roads & Transport",Parking Services,Plan Pol & Transport,Premises related Expenditure,Energy Costs,Electricity,29/01/2015,139837,5047.75,Hampshire County Council
PS,Cultural & Related,Open Spaces,Environmental,Premises related Expenditure,Energy Costs,Electricity,29/01/2015,139837,86.29,Hampshire County Council
,Central Services to the Public,Management & Support Services,Chief Executive's,Supplies & Services,Miscellaneous Expenses,Security Services,08/01/2015,142962,88.41,Keyline Chartered Security Ltd
,Cultural & Related,Culture & Heritage,Community and Leisure ,Supplies & Services,Miscellaneous Expenses,Bank Charges,08/01/2015,142962,74.94,Keyline Chartered Security Ltd
,"Highways, Roads & Transport",Parking Services,Plan Pol & Transport,Supplies & Services,Services,Professional Fees,08/01/2015,142962,5215.65,Keyline Chartered Security Ltd
,Central Services to the Public,Management & Support Services,Chief Executive's,Supplies & Services,Miscellaneous Expenses,Security Services,08/01/2015,142964,88.41,Keyline Chartered Security Ltd
,Cultural & Related,Culture & Heritage,Community and Leisure ,Supplies & Services,Miscellaneous Expenses,Bank Charges,08/01/2015,142964,90.94,Keyline Chartered Security Ltd
,"Highways, Roads & Transport",Parking Services,Plan Pol & Transport,Supplies & Services,Services,Professional Fees,08/01/2015,142964,5215.65,Keyline Chartered Security Ltd
CO,Cultural & Related,Open Spaces,Community and Leisure ,Premises related Expenditure,Grounds Maintenance Costs,Gm - Additional Works,08/01/2015,142833,1530,Rocon Contractors Ltd
CO,Cultural & Related,Open Spaces,Community and Leisure ,Premises related Expenditure,Repairs Alterations & Maintenance of Buildings,Estates premises costs - AMP,08/01/2015,142833,3900,Rocon Contractors Ltd
CO,Cultural & Related,Culture & Heritage,Community and Leisure ,Supplies & Services,Miscellaneous Expenses,Booking Of Acts,22/01/2015,144203,5480.99,Singalonga Productions Limited
CO,Environmental & Regulatory,Waste management,Environmental,Supplies & Services,"Equipment, Furniture & Materials",Purchase Equip + Materials,29/01/2015,145374,5590.5,Egbert H Taylor & Co Ltd
CO,Environmental & Regulatory,Regulatory Services,Housing and Environmental Health ,Supplies & Services,Grants and subscriptions,Capital Grants,29/01/2015,145788,7079.65,Aster Property
CO,Central Services to the Public,Management & Support Services,Plan Pol & Transport,Premises related Expenditure,Repairs Alterations & Maintenance of Buildings,General Repairs,15/01/2015,144328,7112.11,Openreach Bt
CO,Planning & Development,Development Control,Planning & Building,Supplies & Services,Services,Project Consultancy - Policy,22/01/2015,144769,6000,Bnp Paribas Real Estate & Property Mgt Uk Ltd
CO,Central Services to the Public,Management & Support Services,Estates and Economic Development ,Third Party Payments,Other Establishments,Private Contractors,15/01/2015,144142,6241,Chimflue Ltd
CO,Environmental & Regulatory,Waste management,Environmental,Supplies & Services,Miscellaneous Expenses,Recycling Bank Emptying,08/01/2015,143864,6259.93,Fcc Recycling (Uk) Ltd
CO,Environmental & Regulatory,Waste management,Environmental,Transport Related Expenditure,Direct Transport Costs,External Garages,15/01/2015,143842,6380.81,Dennis Eagle Ltd
PS,Planning & Development,Community Development,Community and Leisure ,Supplies & Services,Grants & Subscriptions,Grants,14/01/2015,144334,7846,Braishfield Village Hall Committee
CO,Central Services to the Public,Management & Support Services,IT,Supplies & Services,Services,Project Consultancy - Systems,08/01/2015,143610,6750,Quadsys
CO,Central Services to the Public,Management & Support Services,IT,Supplies & Services,Services,Project Consultancy - Systems,22/01/2015,132283,6800,Deltascheme
CO,Central Services to the Public,Management & Support Services,Plan Pol & Transport,Supplies & Services,"Equipment, Furniture & Materials",Purchase Equip + Materials,08/01/2015,143600,6932.96,Virgin Media Ltd
CH,Environmental & Regulatory,Regulatory Services,Housing and Environmental Health ,Supplies & Services,Grants and subscriptions,Capital Grants,07/01/2015,143789,9820.49,Enham Trust
PS,Environmental & Regulatory,Community Development,Community and Leisure ,Supplies & Services,Miscellaneous Expenses,Promotions / Special Events,29/01/2015,145750,10000,Romsey Community School
CO,Central Services to the Public,Management & Support Services,IT,Supplies & Services,Communications & Computing,Software Maintenance,08/01/2015,143609,9000,Quadsys
CO,Central Services to the Public,Management & Support Services,IT,Supplies & Services,Communications & Computing,Software Maintenance,22/01/2015,144956,10169.98,Empowered Sms Ltd T/A Neptune
PS,Central Services to the Public,Housing Benefits ,Revenues,Employees,Direct Employee Expenses,Shared service staffing costs,29/01/2015,145108,12213.94,Winchester City Council
CO,Cultural & Related,Recreation & Sport,Community and Leisure ,Premises related Expenditure,Grounds Maintenance Costs,Non Contract Tree Works,22/01/2015,142645,906.41,Gristwood & Toms Ltd
CO,Cultural & Related,Open Spaces,Community and Leisure ,Premises related Expenditure,Grounds Maintenance Costs,Non Contract Tree Works,22/01/2015,142645,2400.74,Gristwood & Toms Ltd
CO,Cultural & Related,Open Spaces,Community and Leisure ,Premises related Expenditure,Grounds Maintenance Costs,Non Contract Tree Works,22/01/2015,142645,7776.31,Gristwood & Toms Ltd
CO,Environmental & Regulatory,Waste management,Environmental,Supplies & Services,"Equipment, Furniture & Materials",Purchase Equip + Materials,29/01/2015,145787,11575.98,Straight Plc
PS,Central Services to the Public,Management & Support Services,IT,Supplies & Services,Communications & Computing,Software Maintenance,29/01/2015,144185,12203,Hampshire County Council
CO,Central Services to the Public,Management & Support Services,Estates and Economic Development ,Third Party Payments,Other Establishments,Private Contractors,22/01/2015,145104,13685,Purbeck Civil Engineering Limited
CO,Central Services to the Public,Management & Support Services,Environmental,Transport Related Expenditure,Direct Transport Costs,Vehicles and Plant,22/01/2015,144231,17986,Greenshields Jcb Ltd
CO,Central Services to the Public,Management & Support Services,IT,Supplies & Services,Communications & Computing,Software Maintenance,08/01/2015,143674,20802.6,Trustmarque Solutions Ltd.
CH,Cultural & Related,Recreation & Sport,Community and Leisure ,Supplies & Services,Grants and subscriptions,Capital Grants,08/01/2015,143886,25000,Hurstbourne Tarrant Community Centre Cio
CO,Central Services,Support Services,Finance,Supplies & Services,Services,Insurance ,29/01/2015,145376,30301.99,Legal & General Assurance Society Ltd
CO,Cultural & Related,Recreation & Sport,Community and Leisure ,Third Party Payments,Other Establishments,ALC Management Contract-TVL,08/01/2015,143442,34000,Valley Leisure Ltd
CO,Central Services to the Public,Management & Support Services,Estates and Economic Development ,Third Party Payments,Other Establishments,Private Contractors,29/01/2015,145604,39982,Sa Pool Systems Ltd
